bitfinex-derivatives/quotes_BTCF0:USTF0_20240910
["timestamp","ask_amount","ask_price","bid_price","bid_amount"]
[1725961755375,0.187371,57224.0,57223.0,0.07051182]
[1725961755775,0.192371,57224.0,57223.0,0.0014]
[1725961756078,0.192371,57224.0,57223.0,0.088773]
[1725961756267,0.196371,57224.0,57223.0,0.087773]
[1725961756979,0.192371,57224.0,57223.0,0.087773]
[1725961757186,0.196371,57224.0,57223.0,0.087773]
[1725961757482,0.191371,57224.0,57223.0,0.087773]
[1725961757680,0.196371,57224.0,57223.0,0.087773]
[1725961758279,0.191371,57224.0,57223.0,0.087773]
[1725961758783,0.192371,57224.0,57223.0,0.088773]
[1725961759479,0.192371,57224.0,57223.0,0.087773]
[1725961760070,0.196371,57224.0,57223.0,0.087773]
[1725961760576,0.196371,57224.0,57223.0,0.0004]
[1725961761276,0.196371,57224.0,57223.0,0.2004]
[1725961762887,0.196371,57224.0,57223.0,0.25224458]
[1725961763089,0.196371,57224.0,57223.0,0.2004]
[1725961763282,0.196371,57224.0,57223.0,0.25224458]
[1725961763982,0.2167156,57224.0,57223.0,0.2004]
[1725961764387,0.2167156,57224.0,57223.0,0.25224458]
[1725961764577,0.2167156,57224.0,57223.0,0.2004]
[1725961764778,0.2167156,57224.0,57223.0,0.25224458]
[1725961764982,0.2167156,57224.0,57223.0,0.25424458]
[1725961764983,0.2247156,57224.0,57223.0,0.25424458]
[1725961765682,0.2247156,57224.0,57223.0,0.2024]
[1725961767686,0.2247156,57224.0,57223.0,0.2542677]
[1725961767891,0.2247156,57224.0,57223.0,0.2024]
[1725961768491,0.2247156,57224.0,57223.0,0.27151182]
[1725961769789,0.2247156,57224.0,57223.0,0.2024]
[1725961771588,0.117,57224.0,57223.0,0.289773]
[1725961771784,0.117,57224.0,57223.0,0.288773]
[1725961771785,0.109,57224.0,57223.0,0.288773]
[1725961772187,0.204371,57224.0,57223.0,0.289773]
[1725961772780,0.196371,57224.0,57223.0,0.288773]
[1725961772994,0.204371,57224.0,57223.0,0.289773]
[1725961773189,0.117,57224.0,57223.0,0.289773]
[1725961773496,0.117,57224.0,57223.0,0.50596561]
[1725961773689,0.117,57224.0,57223.0,0.3761341]
[1725961773890,0.117,57224.0,57223.0,0.289773]
[1725961773891,0.204371,57224.0,57223.0,0.289773]
[1725961774094,0.204371,57224.0,57223.0,0.2024]
[1725961774590,0.196371,57224.0,57223.0,0.2014]
[1725961774792,0.203371,57224.0,57223.0,0.2024]
[1725961774994,0.116,57224.0,57223.0,0.2024]
[1725961775387,0.116,57224.0,57223.0,0.33225253]
[1725961775583,0.107,57224.0,57223.0,0.41862553]
[1725961775790,0.115,57224.0,57223.0,0.41962553]
[1725961775994,0.05379739,57224.0,57223.0,0.41962553]
[1725961776195,0.05379739,57224.0,57223.0,0.47412553]
[1725961776397,0.05379739,57224.0,57223.0,0.57775441]
[1725961776887,0.05379739,57224.0,57223.0,0.47412553]
[1725961777087,0.14116839,57224.0,57223.0,0.47412553]
[1725961777495,0.13416839,57224.0,57223.0,0.47312553]
[1725961777797,0.18395917,57224.0,57223.0,0.344273]
[1725961778286,0.18395917,57224.0,57223.0,0.2569]
[1725961778484,0.18395917,57224.0,57223.0,0.2024]
[1725961780701,0.18395917,57224.0,57223.0,0.289773]
[1725961781994,0.18395947,57224.0,57223.0,0.289773]
[1725961783495,0.09658847,57224.0,57223.0,1.414053]
[1725961783686,0.09658847,57224.0,57223.0,1.501426]
[1725961783886,0.09658847,57224.0,57223.0,1.574053]
[1725961784084,0.09658847,57224.0,57223.0,1.414053]
[1725961784991,0.09658847,57224.0,57223.0,1.214053]
[1725961785184,0.09658847,57224.0,57223.0,0.614053]
[1725961785603,0.09658847,57224.0,57223.0,1.214053]
[1725961785797,0.09658847,57224.0,57223.0,0.089773]
[1725961786095,0.05379739,57224.0,57223.0,0.32207719]
[1725961786300,0.05379739,57224.0,57223.0,0.21825504]
[1725961789995,0.05379739,57224.0,57223.0,0.82990804]
[1725961790195,0.05379739,57224.0,57223.0,1.59143019]
[1725961790401,0.05379739,57224.0,57223.0,1.50405719]
[1725961790595,0.05379739,57224.0,57223.0,0.80023504]
[1725961791602,0.05379739,57224.0,57223.0,0.90402492]
[1725961792595,0.05379739,57224.0,57223.0,0.37974492]
[1725961792796,0.05379739,57224.0,57223.0,0.21825504]
[1725961792998,0.05379739,57224.0,57223.0,0.089773]
[1725961794305,0.05379739,57224.0,57223.0,0.249773]
[1725961794501,0.05379739,57224.0,57223.0,0.861426]
[1725961794807,0.05379739,57224.0,57223.0,0.249773]
[1725961795011,0.12214776,57232.0,57223.0,1.374053]
[1725961795307,0.12214776,57235.0,57234.0,0.087356]
[1725961795506,0.12214776,57236.0,57235.0,0.087354]
[1725961795808,0.087352,57237.0,57235.0,0.0004]
[1725961795809,0.20949976,57237.0,57235.0,0.0004]
[1725961796115,0.20949976,57237.0,57236.0,0.087753]
[1725961797397,0.08735,57238.0,57237.0,0.087351]
[1725961797601,0.08735,57238.0,57237.0,0.087751]
[1725961798402,0.08735,57238.0,57237.0,0.0004]
[1725961798905,0.09535,57238.0,57237.0,0.0014]
[1725961800005,0.10535,57238.0,57237.0,0.0024]
[1725961800806,0.10535,57238.0,57237.0,0.089751]
[1725961801010,0.10535,57238.0,57237.0,0.15895375]
[1725961802109,0.10535,57238.0,57237.0,0.0024]
[1725961802110,0.26535,57238.0,57237.0,0.0024]
[1725961802814,0.3527,57238.0,57237.0,0.0024]
[1725961803009,0.3527,57238.0,57237.0,0.05424355]
[1725961803421,0.26535,57238.0,57237.0,0.05424355]
[1725961804412,0.10535,57238.0,57237.0,0.05424355]
[1725961804607,0.10535,57238.0,57237.0,0.0024]
[1725961805112,0.018,57238.0,57237.0,0.089751]
[1725961806214,0.02105468,57239.0,57238.0,0.08735]
[1725961806411,0.087345,57241.0,57238.0,0.15689553]
[1725961806605,0.087345,57241.0,57240.0,0.0004]
[1725961806806,0.087345,57241.0,57238.0,0.15689553]
[1725961807102,0.087348,57239.0,57238.0,0.0004]
[1725961807507,0.097348,57239.0,57238.0,0.08875]
[1725961808108,0.19375516,57239.0,57238.0,0.08875]
[1725961808615,0.14013037,57239.0,57238.0,0.08875]
[1725961809124,0.14012801,57239.0,57238.0,0.08975]
[1725961809303,0.19374978,57239.0,57238.0,0.08975]
[1725961809505,0.14812801,57239.0,57238.0,0.08975]
[1725961810107,0.11440177,57239.0,57238.0,0.08975]
[1725961810507,0.27136827,57239.0,57238.0,0.08975]
[1725961810714,0.06077969,57239.0,57238.0,1.21387]
[1725961811107,0.06077969,57239.0,57238.0,1.30122]
[1725961811312,0.12208548,57240.0,57238.0,1.12652]
[1725961811611,0.12208548,57243.0,57241.0,0.087345]
[1725961811910,0.12208548,57243.0,57240.0,0.087347]
[1725961811911,0.12208548,57245.0,57244.0,0.087341]
[1725961812617,0.13952626,57250.0,57242.0,0.1604]
[1725961812618,0.12208548,57247.0,57242.0,0.1604]
[1725961812805,0.12208548,57247.0,57246.0,0.0004]
[1725961813317,0.12208548,57247.0,57246.0,0.087737]
[1725961813612,0.12208548,57247.0,57246.0,0.1604]
[1725961813613,0.04277022,57247.0,57246.0,0.1604]
[1725961813816,0.04277006,57247.0,57246.0,0.1604]
[1725961814018,0.04277006,57247.0,57246.0,0.247737]
[1725961814416,0.04277006,57247.0,57246.0,0.0004]
[1725961814609,0.04277006,57247.0,57246.0,0.0014]
[1725961814610,0.13010623,57247.0,57246.0,0.0014]
[1725961814810,0.28674726,57247.0,57246.0,0.0014]
[1725961815010,0.19020623,57247.0,57246.0,0.0014]
[1725961815819,0.04277023,57247.0,57246.0,0.248737]
[1725961816006,0.08733,57251.0,57246.0,0.1604]
[1725961816209,0.08733,57251.0,57250.0,0.087731]
[1725961817711,0.08733,57251.0,57250.0,0.088731]
[1725961819118,0.08733,57251.0,57250.0,0.0024]
[1725961819119,0.334662,57251.0,57250.0,0.0024]
[1725961820224,0.08733,57251.0,57250.0,0.0024]
[1725961825124,0.02092529,57254.0,57250.0,0.0024]
[1725961825422,0.0890885,57262.0,57257.0,0.087321]
[1725961825621,0.0890885,57262.0,57261.0,0.0004]
[1725961825818,0.11026122,57262.0,57261.0,0.0004]
[1725961826834,0.11026122,57262.0,57261.0,0.0014]
[1725961827125,0.11026122,57262.0,57261.0,0.0024]
[1725961827331,0.0890885,57262.0,57261.0,0.0024]
[1725961829424,0.0890885,57262.0,57261.0,0.0014]
[1725961829630,0.0890885,57262.0,57261.0,0.0024]
[1725961831028,0.24809052,57262.0,57261.0,0.0024]
[1725961832624,0.33540452,57262.0,57261.0,0.0024]
[1725961832929,0.08733,57251.0,57250.0,0.0041]
[1725961833129,0.087331,57250.0,57249.0,0.1363]
[1725961833326,0.24633302,57250.0,57249.0,0.0661]
[1725961833529,0.24633302,57250.0,57247.0,0.087336]
[1725961833823,0.22628874,57248.0,57242.0,0.087742]
[1725961834029,0.15900202,57249.0,57242.0,0.087342]
[1725961834030,0.15900202,57247.0,57242.0,0.087342]
[1725961834322,0.15900202,57246.0,57242.0,0.087342]
[1725961834527,0.087341,57244.0,57242.0,0.087342]
[1725961834728,0.15900202,57243.0,57242.0,0.087342]
[1725961836525,0.15900202,57243.0,57242.0,0.088342]
[1725961836721,0.15900202,57243.0,57242.0,0.089342]
[1725961837335,0.24634402,57243.0,57242.0,0.089342]
[1725961838237,0.087342,57243.0,57242.0,0.089342]
[1725961838831,0.087342,57243.0,57242.0,0.002]
[1725961839038,0.247342,57243.0,57242.0,0.002]
[1725961839635,0.087342,57243.0,57242.0,0.002]
[1725961841531,0.10776127,57243.0,57242.0,0.002]
[1725961841727,0.35510327,57243.0,57242.0,0.002]
[1725961844442,0.087353,57236.0,57230.0,0.0082]
[1725961844642,0.08736,57231.0,57228.0,0.067]
[1725961844832,0.08736,57231.0,57228.0,0.154364]
[1725961845037,0.087355,57235.0,57231.0,0.08736]
[1725961845244,0.087355,57235.0,57234.0,0.0004]
[1725961846238,0.20934588,57235.0,57234.0,0.0004]
[1725961846544,0.087355,57235.0,57234.0,0.0014]
[1725961847337,0.20934588,57235.0,57234.0,0.0014]
[1725961848338,0.13013792,57235.0,57234.0,0.0014]
[1725961849547,0.087355,57235.0,57234.0,0.0014]
[1725961850441,0.20922353,57235.0,57234.0,0.0014]
[1725961851647,0.087355,57235.0,57234.0,0.0014]
[1725961851849,0.20922353,57235.0,57234.0,0.0014]
[1725961852442,0.087355,57235.0,57234.0,0.0014]
[1725961853050,0.17471,57235.0,57234.0,0.0014]
[1725961854142,0.087355,57235.0,57234.0,0.0014]
[1725961854343,0.04364454,57235.0,57234.0,0.0014]
[1725961855847,0.087351,57238.0,57234.0,0.157055]
[1725961856155,0.087351,57238.0,57237.0,0.0004]
[1725961857450,0.02050343,57241.0,57237.0,0.0004]
[1725961857651,0.00327972,57264.0,57242.0,0.087343]
[1725961857652,0.16,57252.0,57242.0,0.087343]
[1725961857954,0.087342,57243.0,57242.0,0.087343]
[1725961858862,0.087344,57242.0,57241.0,0.05186225]
[1725961860758,0.087345,57241.0,57240.0,0.0004]
[1725961863152,0.087345,57241.0,57240.0,0.0014]
[1725961863753,0.17469,57241.0,57240.0,0.0014]
[1725961865157,0.087345,57241.0,57240.0,0.0014]
[1725961867853,0.17469,57241.0,57240.0,0.0014]
[1725961868047,0.1837498,57241.0,57240.0,0.0014]
[1725961868558,0.1837498,57241.0,57240.0,0.1014]
[1725961869058,0.18374933,57241.0,57240.0,0.1014]
[1725961870857,0.30432163,57241.0,57240.0,0.1014]
[1725961873553,0.30432133,57241.0,57240.0,0.1014]
[1725961876266,0.2079173,57241.0,57240.0,0.1014]
[1725961880161,0.1205723,57241.0,57240.0,0.40403685]
[1725961880368,0.1205723,57241.0,57240.0,0.31753341]
[1725961881164,0.187345,57241.0,57240.0,0.31753341]
[1725961881661,0.1,57241.0,57240.0,0.40414881]
[1725961881867,0.1,57241.0,57240.0,0.31753341]
[1725961882063,0.1,57241.0,57240.0,0.40414767]
[1725961882659,0.1,57241.0,57240.0,0.31753341]
[1725961883369,0.29198856,57241.0,57240.0,0.188747]
[1725961883559,0.38838712,57241.0,57240.0,0.188747]
[1725961883763,0.28374356,57241.0,57240.0,0.1014]
[1725961883956,0.47573212,57241.0,57240.0,0.1014]
[1725961884155,0.37108856,57241.0,57240.0,0.1014]
[1725961884663,0.42394356,57241.0,57240.0,0.1014]
[1725961888469,0.4239516,57241.0,57240.0,0.1014]
[1725961890057,0.2837516,57241.0,57240.0,0.1014]
[1725961890258,0.1964066,57241.0,57240.0,0.188747]
[1725961891267,0.1,57241.0,57240.0,0.31771428]
[1725961892968,0.1,57241.0,57240.0,0.38761428]
[1725961895271,0.1,57241.0,57240.0,0.91173428]
[1725961895670,0.0041,57257.0,57252.0,0.087327]
[1725961895979,0.08966343,57263.0,57261.0,0.087315]
[1725961895980,0.0890885,57262.0,57261.0,0.087315]
[1725961896375,0.0890885,57262.0,57261.0,0.087715]
[1725961896570,0.0890885,57262.0,57261.0,0.06969545]
[1725961897267,0.0890885,57262.0,57261.0,0.0004]
[1725961898163,0.24809472,57262.0,57261.0,0.0014]
[1725961898569,0.24809472,57262.0,57261.0,0.088715]
[1725961898570,0.38724347,57262.0,57261.0,0.088715]
[1725961898862,0.32460739,57262.0,57256.0,0.12277805]
[1725961899068,0.09637014,57261.0,57256.0,0.12277805]
[1725961899275,0.09637014,57260.0,57256.0,0.12277805]
[1725961899474,0.09637014,57259.0,57256.0,0.12277805]
[1725961899677,0.09637014,57258.0,57257.0,0.087321]
[1725961900677,0.09637014,57258.0,57256.0,0.04997805]
[1725961900868,0.0017745,57262.0,57256.0,0.04997805]
[1725961900869,0.09637014,57257.0,57256.0,0.04997805]
[1725961901073,0.087324,57255.0,57253.0,0.087327]
[1725961901283,0.09636986,57254.0,57253.0,0.087327]
[1725961901477,0.09636986,57254.0,57248.0,0.0669]
[1725961901478,0.38546869,57254.0,57249.0,0.087333]
[1725961901674,0.15900594,57253.0,57249.0,0.087333]
[1725961901979,0.15900594,57252.0,57249.0,0.087333]
[1725961902180,0.22646275,57254.0,57249.0,0.087333]
[1725961902181,0.09636986,57251.0,57249.0,0.087333]
[1725961902483,0.18370086,57250.0,57249.0,0.087333]
[1725961902783,0.18370086,57250.0,57249.0,0.089333]
[1725961903178,0.18370687,57250.0,57249.0,0.089333]
[1725961903777,0.09637587,57250.0,57249.0,0.089333]
[1725961904183,0.09637587,57250.0,57249.0,0.092333]
[1725961905072,0.18370687,57250.0,57249.0,0.092333]
[1725961905271,0.18370687,57250.0,57249.0,0.005]
[1725961906084,0.09637587,57250.0,57249.0,0.092333]
[1725961906379,0.087331,57250.0,57249.0,0.092333]
[1725961907182,0.088331,57250.0,57249.0,0.091333]
[1725961907581,0.088331,57250.0,57249.0,0.088333]
[1725961908079,0.001,57250.0,57249.0,0.15762845]
[1725961909174,0.0017745,57262.0,57249.0,1.211373]
[1725961909377,0.0017745,57262.0,57259.0,0.087318]
[1725961909378,0.087317,57260.0,57259.0,0.087318]
[1725961909571,0.0017745,57262.0,57258.0,0.05180981]
[1725961909775,0.0017745,57262.0,57261.0,0.087715]
[1725961909981,0.0890875,57262.0,57261.0,0.087715]
[1725961910172,0.0890875,57262.0,57261.0,0.0004]
[1725961910889,0.0890875,57262.0,57261.0,0.0014]
[1725961912987,0.0890875,57262.0,57261.0,0.0024]
[1725961915791,0.1764005,57262.0,57261.0,0.0024]
[1725961916093,0.087328,57252.0,57247.0,0.3218]
[1725961916290,0.08733,57251.0,57249.0,0.087333]
[1725961917787,0.08733,57251.0,57250.0,0.087331]
[1725961918384,0.087331,57250.0,57249.0,0.005]
[1725961919079,0.087331,57250.0,57249.0,0.092333]
[1725961919482,0.087331,57250.0,57249.0,0.005]
[1725961919783,0.087331,57250.0,57249.0,0.003]
[1725961920387,0.087331,57250.0,57248.0,0.087334]
[1725961921001,0.089331,57250.0,57248.0,0.087334]
[1725961921288,0.28177565,57249.0,57243.0,0.087341]
[1725961921491,0.087338,57246.0,57241.0,0.1442]
[1725961921688,0.087338,57246.0,57245.0,0.087339]
[1725961922584,0.28177565,57249.0,57240.0,0.1]
[1725961922784,0.087345,57242.0,57240.0,0.1]
[1725961922986,0.087345,57241.0,57240.0,0.1]
[1725961923690,0.13012218,57241.0,57240.0,0.1]
[1725961923895,0.13012218,57241.0,57240.0,0.105]
[1725961924599,0.29012218,57241.0,57240.0,0.105]
[1725961924894,0.29012218,57241.0,57240.0,0.111]
[1725961925294,0.58765894,57241.0,57240.0,0.111]
[1725961925492,0.087357,57233.0,57231.0,0.0041]
[1725961925681,0.087357,57233.0,57227.0,0.1473]
[1725961925682,0.12198784,57233.0,57230.0,0.087361]
[1725961925887,0.12198784,57234.0,57231.0,0.08736]
[1725961926087,0.12198784,57234.0,57233.0,0.0004]
[1725961926596,0.20934284,57235.0,57233.0,0.0004]
[1725961926789,0.20934284,57235.0,57234.0,0.0004]
[1725961927597,0.087355,57235.0,57234.0,0.0004]
[1725961927797,0.087354,57235.0,57234.0,0.0004]
[1725961928293,0.087354,57235.0,57234.0,0.0014]
[1725961928598,0.087354,57235.0,57234.0,0.05325909]
[1725961929193,0.087354,57235.0,57234.0,0.05425909]
[1725961929693,0.087354,57235.0,57234.0,0.0024]
[1725961929900,0.087348,57240.0,57234.0,0.0024]
[1725961930199,0.09203,57251.0,57242.0,0.087343]
[1725961930200,0.08734,57245.0,57242.0,0.087343]
[1725961930391,0.16,57250.0,57244.0,0.0004]
[1725961930593,0.087342,57243.0,57242.0,0.087343]
[1725961930791,0.087345,57241.0,57240.0,0.073]
[1725961931196,0.087347,57240.0,57239.0,0.0004]
[1725961931393,0.174694,57240.0,57239.0,0.0004]
[1725961933403,0.174694,57240.0,57239.0,0.0014]
[1725961934600,0.08736,57231.0,57230.0,0.0041]
[1725961934905,0.08736,57231.0,57221.0,0.0041]
[1725961934906,0.16,57231.0,57221.0,0.0041]
[1725961935104,0.16,57231.0,57219.0,0.15978232]
[1725961935803,0.16,57231.0,57225.0,0.087368]
[1725961936194,0.087363,57230.0,57225.0,0.087368]
[1725961936606,0.087363,57229.0,57225.0,0.087368]
[1725961937301,0.087363,57229.0,57225.0,0.098368]
[1725961937702,0.087363,57229.0,57225.0,0.109368]
[1725961938006,0.16,57235.0,57225.0,0.022]
[1725961938201,0.087361,57231.0,57228.0,0.087364]
[1725961938407,0.087362,57230.0,57228.0,0.087364]
[1725961939299,0.087363,57229.0,57228.0,0.087364]
[1725961940007,0.087363,57229.0,57228.0,0.094364]
[1725961940905,0.087363,57229.0,57228.0,0.102364]
[1725961942707,0.087363,57229.0,57228.0,0.015]
[1725961943301,0.087363,57229.0,57228.0,0.06681707]
[1725961944204,0.087363,57229.0,57228.0,0.015]
[1725961946310,0.087363,57229.0,57228.0,0.08408943]
[1725961946901,0.087363,57229.0,57228.0,0.015]
[1725961949211,0.087363,57229.0,57228.0,0.22852704]
[1725961950109,0.087363,57229.0,57228.0,0.31589204]
[1725961950513,0.087363,57229.0,57228.0,0.22953025]
[1725961951409,0.04365077,57229.0,57228.0,0.10171189]
[1725961951608,0.04365077,57229.0,57228.0,0.14284953]
[1725961952413,0.04365077,57229.0,57228.0,0.23021453]
[1725961952712,0.04365077,57229.0,57228.0,0.229853]
[1725961953109,0.087359,57232.0,57228.0,0.33348715]
[1725961953316,0.174724,57230.0,57229.0,0.23112215]
[1725961953812,0.174724,57230.0,57229.0,0.127488]
[1725961954214,0.087362,57230.0,57229.0,0.127488]
[1725961954516,0.087362,57230.0,57229.0,0.133488]
[1725961955415,0.698924,57230.0,57229.0,0.09286639]
[1725961955713,0.70817963,57230.0,57229.0,0.006]
[1725961955918,0.27134163,57230.0,57229.0,0.006]
[1725961956114,0.18397963,57230.0,57229.0,0.013]
[1725961956416,0.27134163,57230.0,57229.0,0.013]
[1725961957332,0.18397963,57230.0,57229.0,0.013]
[1725961957509,0.10857963,57230.0,57229.0,0.013]
[1725961957707,0.10857963,57230.0,57229.0,0.22729972]
[1725961958209,0.087362,57230.0,57229.0,0.013]
[1725961959429,0.334724,57230.0,57229.0,0.013]
[1725961959625,0.334724,57230.0,57229.0,0.06512944]
[1725961959814,0.334724,57230.0,57229.0,0.013]
[1725961964521,0.858924,57230.0,57229.0,0.013]
[1725961966026,0.334724,57230.0,57229.0,0.013]
[1725961966326,0.334724,57230.0,57229.0,0.08249216]
[1725961971227,0.334724,57230.0,57229.0,0.013]
[1725961986337,0.10832852,57231.0,57229.0,0.013]
[1725961986338,0.02096752,57231.0,57229.0,0.013]
[1725961986542,0.3726,57246.0,57229.0,0.173]
[1725961986738,0.388837,57246.0,57245.0,0.0004]
[1725961987236,0.247337,57246.0,57245.0,0.05249072]
[1725961987436,0.02113795,57247.0,57245.0,0.0004]
[1725961987637,0.16,57250.0,57246.0,0.0004]
[1725961987839,0.16,57250.0,57247.0,0.05201591]
[1725961988038,0.087336,57247.0,57246.0,0.0004]
[1725961988235,0.18374233,57247.0,57246.0,0.0004]
[1725961989232,0.35823462,57247.0,57246.0,0.0004]
[1725961989429,0.35818373,57247.0,57246.0,0.0004]
[1725961990642,0.36618373,57247.0,57246.0,0.0024]
[1725961990844,0.38716167,57247.0,57246.0,0.0024]
[1725961991843,0.21272012,57247.0,57246.0,0.0024]
[1725961992234,0.38716152,57247.0,57246.0,0.0024]
[1725961992542,0.21272012,57247.0,57246.0,0.0024]
[1725961993441,0.11631394,57247.0,57246.0,0.0024]
[1725961994044,0.38716204,57247.0,57246.0,0.0024]
[1725961994936,0.087345,57241.0,57240.0,0.0041]
[1725961995137,0.087351,57237.0,57233.0,0.087357]
[1725961995341,0.16,57237.0,57229.0,0.091463]
[1725961995541,0.16,57233.0,57230.0,0.08776]
[1725961995942,0.16,57233.0,57231.0,0.08736]
[1725961997643,0.16,57233.0,57231.0,0.09136]
[1725961998451,0.16,57233.0,57231.0,0.09536]
[1725962000350,0.247358,57233.0,57231.0,0.008]
[1725962001048,0.247358,57233.0,57231.0,0.05999844]
[1725962001747,0.087359,57232.0,57231.0,0.05999844]
[1725962002951,0.087359,57232.0,57231.0,0.05599844]
[1725962003149,0.087359,57232.0,57231.0,0.05999844]
[1725962005948,0.174718,57232.0,57231.0,0.05999844]
[1725962006150,0.174718,57232.0,57231.0,0.008]
[1725962006151,0.087359,57232.0,57231.0,0.008]
[1725962006356,0.174718,57232.0,57231.0,0.008]
[1725962009055,0.21750915,57232.0,57231.0,0.008]
[1725962009760,0.174718,57232.0,57231.0,0.008]
[1725962010555,0.21750914,57232.0,57231.0,0.008]
[1725962011149,0.174718,57232.0,57231.0,0.008]
[1725962016259,0.248318,57232.0,57231.0,0.008]
[1725962019264,0.29110927,57232.0,57231.0,0.008]
[1725962022571,0.43058662,57232.0,57231.0,0.008]
[1725962023563,0.29110927,57232.0,57231.0,0.008]
[1725962024171,0.39110927,57232.0,57231.0,0.008]
[1725962024858,0.31750927,57232.0,57231.0,0.008]
[1725962026374,0.274718,57232.0,57231.0,0.008]
[1725962029175,0.274718,57232.0,57231.0,0.0774543]
[1725962029367,0.087359,57232.0,57231.0,0.0774543]
[1725962029567,0.1,57238.0,57231.0,0.13627757]
[1725962029763,0.1,57238.0,57236.0,0.087352]
[1725962030068,0.1,57238.0,57237.0,0.0004]
[1725962031175,0.102,57238.0,57237.0,0.0004]
[1725962031786,0.1,57238.0,57237.0,0.0004]
[1725962032075,0.18430143,57238.0,57237.0,0.0004]
[1725962032667,0.18630143,57238.0,57237.0,0.0004]
[1725962033771,0.27365143,57238.0,57237.0,0.0004]
[1725962033973,0.27365143,57238.0,57237.0,0.06977134]
[1725962034276,0.27365143,57238.0,57237.0,0.0004]
[1725962035678,0.67365143,57238.0,57237.0,0.0004]
[1725962036181,0.76100143,57238.0,57237.0,0.0004]
[1725962039774,0.087362,57230.0,57229.0,0.05612942]
[1725962039979,0.087362,57230.0,57229.0,0.05202942]
[1725962040977,0.16,57230.0,57229.0,0.05202942]
[1725962041174,0.16,57230.0,57229.0,0.006]
[1725962041577,0.16,57230.0,57229.0,0.012]
[1725962043279,0.247362,57230.0,57229.0,0.012]
[1725962044286,0.26783681,57230.0,57229.0,0.012]
[1725962054191,0.20783681,57230.0,57229.0,0.012]
[1725962054796,0.20783681,57230.0,57229.0,0.08143365]
[1725962055990,0.20783681,57230.0,57229.0,0.012]
[1725962077099,0.20783681,57230.0,57229.0,0.22733467]
[1725962078709,0.20783681,57230.0,57229.0,0.012]
[1725962085795,0.33012556,57230.0,57229.0,0.012]
[1725962086515,0.20783681,57230.0,57229.0,0.012]
[1725962089906,0.29519881,57230.0,57229.0,0.012]
[1725962090308,0.087366,57227.0,57221.0,0.0041]
[1725962090613,0.087377,57220.0,57219.0,0.09090763]
[1725962090816,0.087379,57219.0,57217.0,0.08680763]
[1725962090999,0.18738,57218.0,57217.0,0.08680763]
[1725962091205,0.087382,57217.0,57215.0,0.08680763]
[1725962091406,0.1,57216.0,57215.0,0.08680763]
[1725962091608,0.05627378,57216.0,57215.0,0.21486494]
[1725962091801,0.14365678,57216.0,57215.0,0.21486494]
[1725962092315,0.087385,57215.0,57214.0,0.08680763]
[1725962092618,0.087386,57214.0,57213.0,0.08680763]
[1725962092801,0.187386,57214.0,57213.0,0.21404826]
[1725962093209,0.187386,57214.0,57213.0,0.21400102]
[1725962094414,0.087389,57212.0,57209.0,0.05200929]
[1725962094606,0.001,57214.0,57212.0,0.52436]
[1725962094812,0.001,57214.0,57212.0,1.12436]
[1725962095007,0.1,57213.0,57212.0,0.087389]
[1725962095813,0.087389,57212.0,57211.0,0.073]
[1725962096211,0.087389,57212.0,57211.0,0.012]
[1725962096409,0.088389,57212.0,57211.0,0.012]
[1725962097616,0.089389,57212.0,57211.0,0.023]
[1725962100828,0.176778,57212.0,57211.0,0.023]
[1725962101008,0.174794,57207.0,57206.0,0.0041]
[1725962101210,0.087405,57202.0,57201.0,0.0041]
[1725962101518,0.087406,57201.0,57200.0,0.06934572]
[1725962101715,0.187406,57201.0,57200.0,0.06934572]
[1725962102325,0.187406,57201.0,57197.0,0.0738]
[1725962102326,0.087408,57200.0,57199.0,0.06934572]
[1725962102624,0.187408,57200.0,57199.0,0.06934572]
[1725962103823,0.188408,57200.0,57199.0,0.07634572]
[1725962104320,0.2078897,57200.0,57199.0,0.007]
[1725962104518,0.2088897,57200.0,57199.0,0.01]
[1725962106126,0.2088897,57200.0,57199.0,0.06181622]
[1725962106529,0.2088897,57200.0,57199.0,0.01]
[1725962107222,0.2088897,57200.0,57199.0,0.06181202]
[1725962108726,0.2088897,57200.0,57199.0,0.01]
[1725962111730,0.1214817,57200.0,57199.0,0.01]
[1725962111931,0.2088897,57200.0,57199.0,0.01]
[1725962112128,0.102,57200.0,57199.0,0.01]
[1725962112329,0.087403,57203.0,57199.0,0.097409]
[1725962112524,0.087407,57201.0,57200.0,0.05180866]
[1725962112720,0.087408,57200.0,57199.0,0.14921968]
[1725962113320,0.087408,57200.0,57199.0,0.003]
[1725962113631,0.087408,57200.0,57199.0,0.01]
[1725962114222,0.087411,57198.0,57197.0,0.087411]
[1725962114626,0.087411,57198.0,57197.0,0.13924428]
[1725962115132,0.087411,57198.0,57197.0,0.087411]
[1725962115638,0.087414,57196.0,57195.0,0.06934572]
[1725962115830,0.187414,57196.0,57195.0,0.06934572]
[1725962116128,0.087418,57193.0,57192.0,0.08742]
[1725962116334,0.187418,57193.0,57192.0,0.08742]
[1725962116531,0.187418,57193.0,57191.0,0.0738]
[1725962116532,0.08742,57192.0,57191.0,0.0738]
[1725962117735,0.08842,57192.0,57191.0,0.0798]
[1725962118136,0.08742,57192.0,57191.0,0.0738]
[1725962118332,0.08742,57192.0,57191.0,0.006]
[1725962118333,0.08842,57192.0,57191.0,0.006]
[1725962119533,0.08842,57192.0,57191.0,0.012]
[1725962119739,0.08942,57192.0,57191.0,0.012]
[1725962120122,0.08942,57192.0,57191.0,0.08118582]
[1725962120529,0.18942,57192.0,57191.0,0.08118582]
[1725962121134,0.18942,57192.0,57191.0,0.012]
[1725962122324,0.18942,57192.0,57191.0,0.08118582]
[1725962122831,0.002,57192.0,57191.0,0.16860682]
[1725962123132,0.002,57192.0,57191.0,0.099421]
[1725962123339,0.002,57192.0,57191.0,0.3860793]
[1725962123536,0.002,57192.0,57191.0,0.29927167]